Cogmind - Beta 14 *** ADVENTURER MODE // 2024.08.30 @ 01:18:41 Player: DAKKAKRUMPA Result: Destroyed by G-34 Mercenary with Small Laser Performance ------------- Evolutions (1) 500 Regions Visited (2) 400 Robots Destroyed (40) 200 Value Destroyed (1096) 1096 Prototype IDs (0) 0 Alien Tech Used (0) 0 Bonus (0) 0 TOTAL SCORE: 2196 Bonus ------- None Cogmind --------- Core Integrity 0/400 Matter 292/300 Energy 246/250 System Corruption 0% Temperature Cool (12) Movement Walking (190) Ox1 Location -9/Materials Parts ------- > --- POWER (1) -------- Ion Engine > --- PROPULSION (2) --- Aluminum Leg Aluminum Leg > --- UTILITY (4) ------ Large Storage Unit Structural Scanner Core Shielding Hacking Suite > --- WEAPON (2) ------- Shotgun Mining Claw > --- INVENTORY (15) --- Wheel Shotgun Shotgun Shotgun Shotgun Flail Peak State ------------ > --- POWER ------------ Ion Engine > --- PROPULSION ------- Aluminum Leg Aluminum Leg > --- UTILITY ---------- Large Storage Unit Structural Scanner Core Shielding Hacking Suite > --- WEAPON ----------- Shotgun Mining Claw > --- INVENTORY -------- Wheel Shotgun Shotgun Shotgun Shotgun Flail [Rating: 13] Favorites ----------- Power Light Ion Engine Engine Light Ion Engine Propulsion Light Treads Treads Light Treads Leg Aluminum Leg Wheel Wheel Utility Small Storage Unit Device Structural Scanner Storage Small Storage Unit Hackware Hacking Suite Protection Propulsion Shielding Weapon Shotgun Energy Gun Medium Laser Ballistic Gun Shotgun Slashing Weapon Mining Claw Special Melee Weapon Datajack Build | -11 -10 -9 ------- Run | Yrd Mat Mat Slots Evolved 2 | . . 2 Power . | . . . Propulsion . | . . . Utility 2 | . . 2 Weapon . | . . . Parts Attached 43 | 7 15 21 Power 4 | 1 1 2 Engine 4 | 1 1 2 Core . | . . . Reactor . | . . . Propulsion 11 | 2 1 8 Treads 8 | 2 1 5 Leg 2 | . . 2 Wheel 1 | . . 1 Hover . | . . . Flight . | . . . Utility 9 | 1 2 6 Device 1 | . 1 . Storage 2 | 1 . 1 Processor . | . . . Hackware 1 | . . 1 Protection 5 | . 1 4 Artifact . | . . . Weapon 19 | 3 11 5 Energy Gun 1 | 1 . . Energy Cannon . | . . . Ballistic Gun 9 | 2 4 3 Ballistic Cannon . | . . . Launcher . | . . . Special Weapon . | . . . Impact Weapon . | . . . Slashing Weapon 5 | . 3 2 Piercing Weapon . | . . . Special Melee Weapon 4 | . 4 . Unidentified Prototypes . | . . . Parts Lost 10 | . 1 9 Power 3 | . 1 2 Propulsion 3 | . . 3 Utility 1 | . . 1 Weapon 3 | . . 3 Highest Loss Streak 4 | . 1 4 To Critical Strikes . | . . . Average Slot Usage (%) 88 | . 86 93 Engine 5 | . 4 9 Treads 25 | . 27 17 Device 5 | . 3 11 Storage 13 | . 14 11 Protection 10 | . 8 17 Ballistic Gun 15 | . 16 11 Slashing Weapon 10 | . 10 10 Peak Build Rating 13 | 6 9 13 Average Rating 8 | 4 8 10 On Entrance 5 | . 6 9 Naked Turns . | . . . Heaviest Build 33 | 10 14 33 Greatest Support 40 | 40 40 40 Greatest Overweight (x) 9 | . . 9 Average Overweight (x) . | . . . Largest Inventory Capacity 15 | 8 8 15 Average Capacity 9 | 6 8 13 Most Carried 10 | 4 8 10 Average Carried 7 | 1 7 7 Final Capacity 15 | 8 8 15 Final Carried 8 | 1 8 6 Class Distribution -------------------- 96% | Mutant 3% | Hacker-Mutant Dominant Class ---------------- Mutant | -10/Materials Mutant | -9/Materials Resources | -11 -10 -9 ----------- Run | Yrd Mat Mat Matter Collected 1009 | 198 385 426 Remotely . | . . . Salvage Created 1282 | . 383 899 Parts 94 | . 32 62 Haulers Intercepted . | . . . Recyclers Shooed 1 | . 1 . Parts Field Recycled . | . . . Retrieved Matter . | . . . Parts Self-Destructed . | . . . Prevented . | . . . Kills | -11 -10 -9 ------- Run | Yrd Mat Mat Combat Hostiles Destroyed 29 | . 10 19 Melee 13 | . 3 10 Guns 16 | . 7 9 Classes Destroyed 9 | . 4 5 Worker 3 | . . 3 Tunneler 1 | . 1 . Recycler 1 | . . 1 Operator 1 | . . 1 Watcher 5 | . 3 2 Swarmer 6 | . 3 3 Grunt 15 | . 7 8 Duelist 1 | . . 1 Sentry 7 | . . 7 Best Kill Streak 9 | . 3 9 Combat Bots Only 6 | . 2 6 Max Kills in Single Turn 2 | . 2 1 Gunslinging . | . . . Exploded . | . . . Melee 1 | . 1 1 Uniques/NPCs Destroyed . | . . . Combat | -11 -10 -9 -------- Run | Yrd Mat Mat Hostile Shots Fired 260 | . 81 179 Missed 62 | . 21 41 Damage Taken 2066 | . 521 1545 Core 538 | . 132 406 Absorbed by Shields . | . . . Redirected to Shielding 93 | . 25 68 Ignored by Resistances 612 | . 161 451 Regen/Repaired (Parts) 47 | . 28 19 Core Remaining (%) 73 | 100 47 . Volleys Fired 81 | . 35 46 Largest 2 | . 2 2 Hottest 46 | . 46 46 Shots Fired 113 | . 52 61 Gun 113 | . 52 61 Cannon . | . . . Launcher . | . . . Special . | . . . Kinetic 113 | . 52 61 Thermal . | . . . Explosive . | . . . Electromagnetic . | . . . Robot Hit Streak 15 | . 15 15 Robot Miss Streak 2 | . 2 2 Penetration Max . | . . . Secondary Targets 2 | . . 2 Max Gunslinging Chain 1 | . . 1 Shots Hit Robots 149 | . 57 92 Core Hits 73 | . 26 47 Critical Kills 1 | . . 1 Critical Parts Destroyed . | . . . Critical Strikes 1 | . . 1 Destroy 1 | . . 1 Melee Attacks 58 | . 20 38 Impact . | . . . Slashing 52 | . 14 38 Piercing . | . . . Sneak Attacks 10 | . 6 4 Combat Hostiles . | . . . Follow-up Attacks . | . . . Damage Inflicted 2680 | . 852 1828 Guns 1606 | . 614 992 Cannons . | . . . Explosions . | . . . Melee 1071 | . 235 836 Ramming 3 | . 3 . Kinetic 1606 | . 614 992 Thermal . | . . . Explosive . | . . . Electromagnetic . | . . . Impact . | . . . Slashing 1071 | . 235 836 Piercing . | . . . Highest Corruption 1 | . 1 . Average Corruption 1 | . 1 . Corruption Purged . | . . . Corruption Blocked . | . . . Effects 27 | . 27 . Message Errors 9 | . 9 . Matter Fused 5 | . 5 . Heat Flow Errors 3 | . 3 . Energy Discharges 5 | . 5 . Parts Fused 1 | . 1 . Data Loss (minor) 2 | . 2 . Data Loss (major) 1 | . 1 . Misfires 1 | . 1 . Overload Shots . | . . . Overflow Damage 19 | . 16 3 Projectiles . | . . . Explosions . | . . . Melee 19 | . 16 3 Knockbacks . | . . . Impact . | . . . Kinetic . | . . . Secondary . | . . . Self-Inflicted Damage . | . . . Shots . | . . . Rammed 2 | . 2 . Targets Rammed 2 | . 2 . Kicked . | . . . Crushed . | . . . Highest Temperature 256 | . 256 3 Average Temperature 100 | . 108 3 Received Heat Transfer 897 | . 303 594 Siege Activations . | . . . Robots Corrupted . | . . . Combat Hostiles . | . . . Parts Fried . | . . . Impact Corruptions . | . . . Robots Melted . | . . . Combat Hostiles . | . . . Parts Melted . | . . . Heat Transferred . | . . . Parts Sabotaged . | . . . Parts Stolen . | . . . Parts Stripped . | . . . Power Chain Reactions . | . . . Alert | -11 -10 -9 ------- Run | Yrd Mat Mat Peak Influence 244 | . 196 244 Initial . | . . . Average 43 | . 23 100 Maximum Alert Level 1 | . . 1 Low Security (%) 98 | 100 100 92 Level 1 1 | . . 7 Level 2 . | . . . Level 3 . | . . . Level 4 . | . . . Level 5 . | . . . High Security . | . . . Max Security . | . . . Squads Dispatched 2 | . . 2 Investigation . | . . . Extermination . | . . . Reinforcement 2 | . . 2 Assault . | . . . Garrison . | . . . Intercept . | . . . Searches Triggered . | . . . Construction Impeded . | . . . Haulers Reinforced . | . . . Active Scanning Responses . | . . . Cargo Convoy Interrupts . | . . . Stealth | -11 -10 -9 --------- Run | Yrd Mat Mat Distress Signals 4 | . . 4 Communications Jammed . | . . . Distress Signals . | . . . Times Spotted 57 | . 20 37 Peak Tracking Total 6 | . 6 6 Tactical Retreats 6 | . 3 3 Traps | -11 -10 -9 ------- Run | Yrd Mat Mat Traps Triggered 2 | . 2 . Indirectly . | . . . Trap Hack Attempts 2 | . 2 . Triggered . | . . . Disarmed 5 | . 3 2 Reprogrammed . | . . . Reused . | . . . Traps Extracted . | . . . Installed . | . . . Triggered . | . . . Machines | -11 -10 -9 ---------- Run | Yrd Mat Mat Machines Disabled . | . . . Max in Single Turn . | . . . Machines Repaired . | . . . Machines Dismantled . | . . . Machines Sabotaged . | . . . Overloaded Fab Kills . | . . . Hacking | -11 -10 -9 --------- Run | Yrd Mat Mat Machines Accessed 12 | . 6 6 Terminals 7 | . 3 4 Fabricators . | . . . Repair Stations 2 | . 1 1 Recycling Units 2 | . 2 . Scanalyzers 1 | . . 1 Garrison Access . | . . . Total Hacks 34 | . 15 19 Successful 24 | . 10 14 Failed 10 | . 5 5 Catastrophic . | . . . Database Lockouts . | . . . Manual . | . . . Terminals 22 | . 10 12 Fabricators . | . . . Repair Stations 7 | . 2 5 Recycling Units 3 | . 3 . Scanalyzers 2 | . . 2 Garrison Access . | . . . Terminal Hacks 17 | . 6 11 Record 6 | . 1 5 Robot Analysis 1 | . 1 . Emergency Access Points 1 | . 1 . Scanalyzer Index 1 | . . 1 Alert Level 1 | . 1 . Locate Traps 2 | . . 2 Disarm Traps 2 | . 1 1 Patrol Status 1 | . . 1 Investigation Status 1 | . 1 . Recall Reinforcements 1 | . . 1 Fabricator Hacks . | . . . Repair Station Hacks 4 | . 2 2 Scan Component 2 | . 1 1 Repair 2 | . 1 1 Recycling Unit Hacks 2 | . 2 . Retrieve Components 2 | . 2 . Scanalyzer 1 | . . 1 Insert Component 1 | . . 1 Garrison Access Hacks . | . . . Unauthorized Hacks . | . . . Terminals . | . . . Fabricators . | . . . Repair Stations . | . . . Recycling Units . | . . . Scanalyzers . | . . . Garrison Access . | . . . Data Cores Recovered . | . . . Used . | . . . Hacking Detections 8 | . 4 4 Full Trace Events 2 | . 1 1 Feedback Events . | . . . Feedback Blocked . | . . . Robot Schematics Acquired . | . . . Robots Built . | . . . Authchips . | . . . Time . | . . . Total Robot Build Rating . | . . . Part Schematics Acquired . | . . . Parts Built . | . . . Authchips . | . . . Time . | . . . Total Part Build Rating . | . . . Parts Repaired 2 | . 1 1 Time 52 | . 26 26 Parts Recycled . | . . . Recycled Matter . | . . . Retrieved Matter . | . . . Retrieved Components 13 | . 13 . Parts Scanalyzed 1 | . . 1 Part Schematics Acquired . | . . . Parts Damaged 1 | . . 1 Bothacking | -11 -10 -9 ------------ Run | Yrd Mat Mat Used RIF Installer . | . . . Robots Hacked 2 | . 2 . Non-combat 2 | . 2 . Combat . | . . . Robot Hacks Applied 3 | . 3 . parse_system 2 | . 2 . no_distress 1 | . 1 . Relay Couplers Released . | . . . Fabnet Peak Effective % . | . . . Robots Rewired . | . . . Allies Hacked . | . . . Hacks Repelled . | . . . Allies | -11 -10 -9 -------- Run | Yrd Mat Mat Total Allies . | . . . Largest Group . | . . . Highest-Rated Group . | . . . Highest-Rated Ally . | . . . Total Orders . | . . . Ally Attacks . | . . . Total Damage . | . . . Kills . | . . . Allies Corrupted . | . . . Allies Melted . | . . . Intel | -11 -10 -9 ------- Run | Yrd Mat Mat Robot Analysis Total 1 | . 1 . Derelict Logs Recovered . | . . . Drone Launches . | . . . Drone Recoveries . | . . . Exploration | -11 -10 -9 ------------- Run | Yrd Mat Mat Turns Passed 5079 | 58 3681 1340 Spaces Moved 2284 | 34 1659 591 Core 14 | 9 . 5 Treads 2203 | 25 1659 519 Legs 60 | . . 60 Wheels 7 | . . 7 Hover . | . . . Flight . | . . . Fastest Speed 50 | 50 160 110 Average Speed 161 | 130 160 166 Slowest Speed 500 | 160 160 500 Overloaded Moves . | . . . Propulsion Burnouts . | . . . Robots Hopped . | . . . Cave-ins Triggered . | . . . Exploration Rate (%) 55 | 5 100 60 Regions Visited 2 Branch Regions . Pre-discovered Areas . | . . . Known Exits Taken . | . . . Unknown Exits Taken 2 | 1 1 . Scrap Searched . | . . . Spaces Dug 4 | . 4 . Terrain Destroyed 4 | . 4 . Melee 4 | . 4 . Projectile . | . . . AOE . | . . . Terrain Rammed . | . . . Walls Destroyed . | . . . Machines Disabled . | . . . Actions | -11 -10 -9 --------- Run | Yrd Mat Mat Total 3471 | 47 2611 813 Wait 936 | . 844 92 Move 2282 | 33 1658 591 Hop . | . . . Pick Up 46 | 7 21 18 Fast Attach . | . . . Attach 32 | 6 9 17 Detach 4 | . 3 1 Swap 11 | 1 6 4 Drop 17 | . 11 6 Fire 81 | . 35 46 Melee 58 | . 20 38 Ram . | . . . Kick . | . . . Crush 2 | . 2 . Escape Stasis . | . . . Rewire . | . . . Trap 2 | . 2 . Miscellaneous . | . . . Route ------- -11/Scrapyard -10/Materials (discovered 5 exits: *Mat x3 / [*Min x2]) -9/Materials (discovered 3 exits: [*Mat] / [*Min x2]) History --------- Turn | Location | Event 2 | -11/Scrapyard | Met Revision 17 9 | -11/Scrapyard | Discovered new exit (range 15) 59 | -11/Scrapyard | Entered Materials 211 | -10/Materials | Discovered new exit (range 3) 307 | -10/Materials | Build established: Mutant 425 | -10/Materials | Discovered new exit (range 7) 797 | -10/Materials | Discovered new exit (range 15) 917 | -10/Materials | Discovered new exit (range 15) 2066 | -10/Materials | Core integrity fell below 50% 2770 | -10/Materials | Discovered new exit (range 4) 3339 | -10/Materials | Repaired Mining Claw 3740 | -10/Materials | Entered another Materials area 3740 | -9/Materials | Evolved 2 slots: Utility x2 3916 | -9/Materials | Discovered new exit (range 10) 4245 | -9/Materials | Lost 3 parts (1p1n1w) 4359 | -9/Materials | Discovered new exit (range 16) 4419 | -9/Materials | Repaired Mining Claw 4702 | -9/Materials | Discovered new exit (range 14) 4831 | -9/Materials | Core integrity fell below 50% 4851 | -9/Materials | Core integrity fell below 20% 4881 | -9/Materials | Lost 4 parts (1p1u2w) 5080 | -9/Materials | Destroyed by G-34 Mercenary with Small Laser Last Messages --------------- 04951_ Acquired 10 matter. 04955_ Acquired Ion Engine. 04959_ Acquired 30 matter. 04962_ Acquired 4 matter. 05034_ Connecting with Terminal... >>Recall(Reinforcements) Establishing remote squad link... No tasked reinforcement squads found. >>Enumerate(Patrols) Retrieving latest reported positions... Found 2 active patrol squads. Downloaded coordinate data. >>Index(Scanalyzers) Found 2 scanalyzers. Downloaded coordinate data. 05055_ Sneak attack on W-16 Scout. 05055_ W-16 Scout destroyed. 05071_ K-01 Serf collects debris. 05076_ R-06 Scavenger collects Sensor Array. 05080_ R-06 Scavenger collects Hover Unit. Map ----- +----------------------------------------------------+ | ## ??## ##????????## #####? ?? ### # | | ## ""?## ##????????## ###### ?? ### ####### | | ### ##?## ##????????##%[ ### ?? ### ####### | | ### ##?## ############### ### "????# #????? | | ##?## ############### ### "??????< ?????? | | ##### # * ! ! ##??## ### ??????? #????? | | """ ##### #! """"" ###### ### ?????? ##????? | | """ #!!""""" ###### #####+##?????? ##????? | | """ !#=[""""" + ##?????? ??????? | | !+% """"" ###### ##### # ?????? ??????? | | [#!=""""" ###### ##### # ?????????????? | | [#* """"" # # ##?## # ?????????????? | | " = =%# """"" # # ##?## # ?????????????? | | " %! + #* # ##?## # ?????????????? | | % ########## / ##### # #?????????? | | ########## # #####+######?????????? | | +#####+###+###??????####### # ##?????????? | | # ??????####= + ""T"" ##?????????? | | ""?? # ?? ???????????##*#### """"" ##?????????? | | """? # ??""??????????? #a#### ###????????? | | ?????????""??????????? #k################????????? | | ?????????????????????? #r w t ????????? | | ?????????????????????? #r ????????? | | ?????????????????????? # a ?????????? | | ?????????????????????? # #####+##?????????? | | ??????????????????????## @m # ?????????? | | ????????????????## ? t gg + ???????????????? | | ????????????????## ########### ???????????????? | | ????????????????## ########### ???????????????? | | ??????????????? ?????????????????????????????? | | ????????????? ####?????????????????????????????? | | ???????????? ??####?????????????????????????????? | | ?????????????????????????????????????????????????? | | ?????????????????????????????????????????????????? | | ?????????????????????????????????????????????????? | | ?????????????????????????????????????????????????? | | ?????????????????????????????????????????????????? | | ?????????????????????????????????????????????????? | | ?????????????????????????????????????????????????? | | ?????????????????????????????????????????????????? | | ?????????????????????????????????????????????????? | | ?????????????????????????????????????????????????? | | ?????????????????????????????????????????????????? | | ?????????????????????????????????????????????????? | | ?????????????????????????????????????????????????? | | ?????????????????????????????????????????????????? | | ?????????????????????????????????????????????????? | | ?????????????????????????????????????????????????? | | ?????????????????????????????????????????????????? | | | +----------------------------------------------------+ Best States ------------- Heat Dissipation 28 Energy Generation 10 Energy Capacity 250 Matter Stores 300 Matter Capacity 300 Sight Range 16 Terrain Scan Density 10 Armor Coverage 150 Resistance: KI 20 Resistance: TH 20 Resistance: EX 20 Resistance: EM 20 Resistance: I 20 Resistance: S 20 Resistance: P 20 Core Shielding 20 Propulsion Shielding 33 Evasion (%) 50 Recoil Reduction 2 Offensive Hacking 20 Item Schematics ----------------- None Robot Schematics ------------------ None Fabricated ------------ Nothing Alien Tech Used ----------------- None Achievements -------------- Safety First Challenges ------------ None Game ------ Seed ScanIonTrident Manual? 0 Play Time 00:36:59 Cumulative 25.2 hours Start 2024.08.30 @ 00:34:18 End 2024.08.30 @ 01:18:41 Sessions 1 Manual Loads 0 Difficulty Adventurer Special Mode None Game No. 28 Rogue 0 Adventurer 28 Explorer 0 Win Type - Total 0 Types 0/0/0/0/0/0/0/0/0 Lore% 6 Gallery% 20 Achievement% 18 Wizard Run 0 Options --------- Layout 1 ASCII 0 Keyboard 0 Movement Numpad Keybinds 0 Fullscreen 1 Font 24/Smallcaps Map View 50x35 Zoom Use 0% Tactical HUD 1 Map Filters NONE Filters NONE Steam 1 RUN: 3ba00ec3-f0c7-4612-bd9b-8355e2eb09d8